[Event "Early-Titled-Tuesday-Blitz-April-23-2024"]
[Site "Chess.com"]
[Date "2024.04.23"]
[Round "8"]
[White "wonderfultime"]
[Black "Fandorine"]
[Result "1-0"]
[WhiteElo "3075"]
[BlackElo "2921"]
[TimeControl "180+1"]
[EndTime "9:33:32 PDT"]
[Termination "wonderfultime won on time"]

1. d4 {[%clk 0:03:00.9]} 1... Nf6 {[%clk 0:03:00.4]} 2. Nf3 {[%clk 0:03:01.5]}
2... d5 {[%clk 0:03:00.1]} 3. Bg5 {[%clk 0:03:00.9]} 3... Nbd7 {[%clk
0:02:52.4]} 4. e3 {[%clk 0:02:58.8]} 4... e6 {[%clk 0:02:51.9]} 5. Nbd2 {[%clk
0:02:56.8]} 5... Be7 {[%clk 0:02:51.9]} 6. Bd3 {[%clk 0:02:57.1]} 6... O-O
{[%clk 0:02:52]} 7. O-O {[%clk 0:02:57.5]} 7... b6 {[%clk 0:02:51.5]} 8. c4
{[%clk 0:02:55.4]} 8... Bb7 {[%clk 0:02:51.7]} 9. Rc1 {[%clk 0:02:51.8]} 9...
dxc4 {[%clk 0:02:51.5]} 10. Nxc4 {[%clk 0:02:51.8]} 10... c5 {[%clk 0:02:51.4]}
11. Qe2 {[%clk 0:02:48.5]} 11... b5 {[%clk 0:02:41.4]} 12. Ncd2 {[%clk
0:02:22.6]} 12... cxd4 {[%clk 0:02:26.5]} 13. Nxd4 {[%clk 0:02:20.3]} 13... a6
{[%clk 0:02:26.9]} 14. Bb1 {[%clk 0:02:09.3]} 14... Rc8 {[%clk 0:02:18.3]} 15.
N2f3 {[%clk 0:02:02]} 15... Qb6 {[%clk 0:02:17.2]} 16. h3 {[%clk 0:02:00.1]}
16... h6 {[%clk 0:02:15.6]} 17. Bh4 {[%clk 0:02:00]} 17... Rxc1 {[%clk
0:02:02.2]} 18. Rxc1 {[%clk 0:01:58.7]} 18... Rc8 {[%clk 0:02:02.8]} 19. Rd1
{[%clk 0:01:55.4]} 19... Nf8 {[%clk 0:01:37.6]} 20. Ne5 {[%clk 0:01:36.7]} 20...
Qc5 {[%clk 0:01:34.4]} 21. Ndf3 {[%clk 0:01:07.7]} 21... Ne4 {[%clk 0:01:06.9]}
22. Bxe7 {[%clk 0:00:46.9]} 22... Qxe7 {[%clk 0:01:07.8]} 23. a3 {[%clk
0:00:46.1]} 23... Ng5 {[%clk 0:00:52.8]} 24. Nxg5 {[%clk 0:00:20.1]} 24... Qxg5
{[%clk 0:00:53.7]} 25. Nf3 {[%clk 0:00:21]} 25... Qf6 {[%clk 0:00:49.8]} 26. e4
{[%clk 0:00:18.6]} 26... Ng6 {[%clk 0:00:29.5]} 27. Qd2 {[%clk 0:00:17.7]} 27...
Bc6 {[%clk 0:00:20]} 28. b4 {[%clk 0:00:15.7]} 28... Nf4 {[%clk 0:00:13.1]} 29.
Kh2 {[%clk 0:00:11]} 29... e5 {[%clk 0:00:11.8]} 30. Qe3 {[%clk 0:00:10.4]}
30... g5 {[%clk 0:00:08.1]} 31. Ng1 {[%clk 0:00:08.4]} 31... Rd8 {[%clk
0:00:05.2]} 32. Rc1 {[%clk 0:00:06.1]} 32... Ba8 {[%clk 0:00:04.8]} 33. g3
{[%clk 0:00:06.6]} 33... Ne6 {[%clk 0:00:05.1]} 34. Ne2 {[%clk 0:00:05.8]} 34...
Kg7 {[%clk 0:00:04.7]} 35. Nc3 {[%clk 0:00:06]} 35... Nd4 {[%clk 0:00:04.7]} 36.
Kg2 {[%clk 0:00:05.4]} 36... Rc8 {[%clk 0:00:04.4]} 37. Re1 {[%clk 0:00:04.1]}
37... Qe6 {[%clk 0:00:04.5]} 38. Nd5 {[%clk 0:00:04.2]} 38... Bxd5 {[%clk
0:00:04.3]} 39. exd5 {[%clk 0:00:05.1]} 39... Qxd5+ {[%clk 0:00:05.2]} 40. Be4
{[%clk 0:00:06]} 40... Qd6 {[%clk 0:00:05.9]} 41. g4 {[%clk 0:00:06.3]} 41...
Re8 {[%clk 0:00:05.3]} 42. h4 {[%clk 0:00:06.1]} 42... Qf6 {[%clk 0:00:05.1]}
43. hxg5 {[%clk 0:00:06.2]} 43... hxg5 {[%clk 0:00:05.2]} 44. Rh1 {[%clk
0:00:06]} 44... Rh8 {[%clk 0:00:04.7]} 45. Rxh8 {[%clk 0:00:04.2]} 45... Kxh8
{[%clk 0:00:05.6]} 46. Qh3+ {[%clk 0:00:04.3]} 46... Kg7 {[%clk 0:00:06.2]} 47.
Qh7+ {[%clk 0:00:04.9]} 47... Kf8 {[%clk 0:00:06.9]} 48. Qh3 {[%clk 0:00:05.8]}
48... Ke7 {[%clk 0:00:07.2]} 49. Bb7 {[%clk 0:00:02.1]} 49... Qe6 {[%clk
0:00:06.1]} 50. Qg3 {[%clk 0:00:01.3]} 50... Kd7 {[%clk 0:00:05]} 51. Be4 {[%clk
0:00:00.8]} 51... Qd6 {[%clk 0:00:05]} 52. Kh2 {[%clk 0:00:01.2]} 52... Qh6+
{[%clk 0:00:04.9]} 53. Kg2 {[%clk 0:00:01.6]} 53... Qf6 {[%clk 0:00:05.1]} 54.
Qe3 {[%clk 0:00:02]} 54... Qf4 {[%clk 0:00:04.6]} 55. Kh3 {[%clk 0:00:02.6]}
55... Qxe3+ {[%clk 0:00:02.9]} 56. fxe3 {[%clk 0:00:03.5]} 56... Ne6 {[%clk
0:00:02.3]} 57. Kg3 {[%clk 0:00:03.8]} 57... Kd6 {[%clk 0:00:02.8]} 58. Kf3
{[%clk 0:00:04.4]} 58... Nd8 {[%clk 0:00:03.1]} 59. Bf5 {[%clk 0:00:04.7]} 59...
f6 {[%clk 0:00:03.3]} 60. Bb1 {[%clk 0:00:05.2]} 60... Nf7 {[%clk 0:00:02.8]}
61. Ke4 {[%clk 0:00:05.8]} 61... Nh6 {[%clk 0:00:02.2]} 62. Kf3 {[%clk
0:00:06.5]} 62... Kd7 {[%clk 0:00:02.1]} 63. Ba2 {[%clk 0:00:06.5]} 63... Kc7
{[%clk 0:00:02.7]} 64. Be6 {[%clk 0:00:06.4]} 64... Kb6 {[%clk 0:00:03]} 65. Ke4
{[%clk 0:00:06.5]} 65... a5 {[%clk 0:00:03.3]} 66. Kd5 {[%clk 0:00:06.6]} 66...
axb4 {[%clk 0:00:03.3]} 67. axb4 {[%clk 0:00:07.5]} 67... Ka6 {[%clk 0:00:03.8]}
68. Kc6 {[%clk 0:00:07.9]} 68... f5 {[%clk 0:00:03.8]} 69. Bxf5 {[%clk
0:00:08.2]} 69... e4 {[%clk 0:00:03.9]} 70. Be6 {[%clk 0:00:08.4]} 1-0

[Event "Early-Titled-Tuesday-Blitz-April-23-2024"]
[Site "Chess.com"]
[Date "2024.04.23"]
[Round "8"]
[White "AradNazari"]
[Black "Grandelicious"]
[Result "1-0"]
[WhiteElo "2752"]
[BlackElo "2890"]
[TimeControl "180+1"]
[EndTime "9:33:33 PDT"]
[Termination "AradNazari won by resignation"]

1. e4 {[%clk 0:03:00.9]} 1... c5 {[%clk 0:02:59.8]} 2. Nf3 {[%clk 0:03:01.4]}
2... e6 {[%clk 0:02:59.1]} 3. d4 {[%clk 0:03:01]} 3... cxd4 {[%clk 0:03:00]} 4.
Nxd4 {[%clk 0:03:01.9]} 4... Nc6 {[%clk 0:03:00.7]} 5. Nc3 {[%clk 0:03:01.9]}
5... Qc7 {[%clk 0:03:01.4]} 6. Be3 {[%clk 0:02:58.9]} 6... a6 {[%clk 0:03:01.4]}
7. Qf3 {[%clk 0:02:58.8]} 7... h5 {[%clk 0:02:58.1]} 8. Nxc6 {[%clk 0:02:44.1]}
8... Qxc6 {[%clk 0:02:54.8]} 9. Bd3 {[%clk 0:02:40.7]} 9... Nf6 {[%clk
0:02:46.8]} 10. h3 {[%clk 0:01:58.7]} 10... b5 {[%clk 0:02:45.2]} 11. e5 {[%clk
0:01:55.9]} 11... Qxf3 {[%clk 0:02:40.3]} 12. gxf3 {[%clk 0:01:56.4]} 12... Ng8
{[%clk 0:02:32.2]} 13. a4 {[%clk 0:01:50.2]} 13... b4 {[%clk 0:02:32.6]} 14. Ne4
{[%clk 0:01:49.3]} 14... Bb7 {[%clk 0:02:33.1]} 15. Ke2 {[%clk 0:01:44.8]} 15...
Nh6 {[%clk 0:02:30.7]} 16. Nc5 {[%clk 0:01:39.7]} 16... Bxc5 {[%clk 0:02:17]}
17. Bxc5 {[%clk 0:01:40.6]} 17... a5 {[%clk 0:02:17.7]} 18. Rad1 {[%clk
0:01:33.1]} 18... Bc6 {[%clk 0:02:11.4]} 19. b3 {[%clk 0:01:30.5]} 19... f6
{[%clk 0:02:07.6]} 20. Rhg1 {[%clk 0:01:24]} 20... fxe5 {[%clk 0:01:51.7]} 21.
Rxg7 {[%clk 0:01:18.1]} 21... O-O-O {[%clk 0:01:52]} 22. Bd6 {[%clk 0:00:49]}
22... Nf5 {[%clk 0:01:41.9]} 23. Bxf5 {[%clk 0:00:37.6]} 23... exf5 {[%clk
0:01:42.8]} 24. Rg5 {[%clk 0:00:22.2]} 24... f4 {[%clk 0:01:15.5]} 25. Bxe5
{[%clk 0:00:16.3]} 25... Rde8 {[%clk 0:01:10.3]} 26. Rd6 {[%clk 0:00:07.4]}
26... Rh7 {[%clk 0:01:01.7]} 27. Kd3 {[%clk 0:00:06.7]} 27... Rf7 {[%clk
0:00:32]} 28. Bd4 {[%clk 0:00:05.8]} 28... Kc7 {[%clk 0:00:25.9]} 29. Rh6 {[%clk
0:00:04.9]} 29... Re1 {[%clk 0:00:23.2]} 30. Rxa5 {[%clk 0:00:03.9]} 30... Rd1+
{[%clk 0:00:23.4]} 31. Kc4 {[%clk 0:00:04.4]} 31... Bxf3 {[%clk 0:00:21]} 32.
Ra7+ {[%clk 0:00:03.9]} 32... Kd8 {[%clk 0:00:18.6]} 33. Bf6+ {[%clk 0:00:03.4]}
33... Ke8 {[%clk 0:00:12.2]} 34. Rh8+ {[%clk 0:00:02.6]} 34... Rf8 {[%clk
0:00:12.9]} 35. Rxf8+ {[%clk 0:00:02.9]} 35... Kxf8 {[%clk 0:00:13.6]} 36. Kxb4
{[%clk 0:00:03.6]} 36... Kf7 {[%clk 0:00:13.3]} 37. Be5 {[%clk 0:00:02.3]} 37...
Ke6 {[%clk 0:00:14]} 38. Bb8 {[%clk 0:00:02.5]} 38... h4 {[%clk 0:00:13]} 39.
Ra5 {[%clk 0:00:02.4]} 39... Bg2 {[%clk 0:00:12.8]} 40. Re5+ {[%clk 0:00:02.6]}
40... Kf6 {[%clk 0:00:11.6]} 41. Rh5 {[%clk 0:00:03.4]} 41... Bxh3 {[%clk
0:00:12]} 42. Rxh4 {[%clk 0:00:04]} 42... Bf5 {[%clk 0:00:10.9]} 43. Bxf4 {[%clk
0:00:04.1]} 43... Bxc2 {[%clk 0:00:10.5]} 44. Kc3 {[%clk 0:00:02.7]} 44... Bf5
{[%clk 0:00:09.9]} 45. Be3 {[%clk 0:00:02.9]} 45... Rd3+ {[%clk 0:00:09.4]} 46.
Kb2 {[%clk 0:00:03]} 46... Be6 {[%clk 0:00:09.9]} 47. Rb4 {[%clk 0:00:02.5]}
47... Ke5 {[%clk 0:00:10.2]} 48. a5 {[%clk 0:00:03]} 48... Rd5 {[%clk
0:00:08.3]} 49. a6 {[%clk 0:00:03.6]} 49... Ra5 {[%clk 0:00:08.8]} 50. Rb6
{[%clk 0:00:03.2]} 50... Bd5 {[%clk 0:00:07.2]} 51. b4 {[%clk 0:00:02.1]} 51...
Ra2+ {[%clk 0:00:07.5]} 52. Kc3 {[%clk 0:00:02.8]} 52... Ra3+ {[%clk 0:00:05.5]}
53. Kb2 {[%clk 0:00:02.5]} 53... Ra2+ {[%clk 0:00:06.1]} 54. Kc1 {[%clk
0:00:03.3]} 54... Bc4 {[%clk 0:00:05.4]} 55. b5 {[%clk 0:00:03.4]} 55... Ra5
{[%clk 0:00:05.6]} 56. Rb7 {[%clk 0:00:02.7]} 56... Bxb5 {[%clk 0:00:02.5]} 57.
a7 {[%clk 0:00:03.3]} 57... Bc6 {[%clk 0:00:02.7]} 58. Rb8 {[%clk 0:00:04]}
58... Ke4 {[%clk 0:00:02.8]} 59. Kb2 {[%clk 0:00:04.7]} 59... Ra6 {[%clk
0:00:02.3]} 60. Kc3 {[%clk 0:00:05.3]} 60... Kd5 {[%clk 0:00:02.7]} 61. Kb4
{[%clk 0:00:05.8]} 61... Ra1 {[%clk 0:00:02.5]} 62. Rh8 {[%clk 0:00:05.4]} 62...
Rb1+ {[%clk 0:00:02]} 63. Ka5 {[%clk 0:00:06.1]} 63... Ra1+ {[%clk 0:00:02.9]}
64. Kb6 {[%clk 0:00:06.6]} 64... Rb1+ {[%clk 0:00:03.2]} 65. Kc7 {[%clk
0:00:07.2]} 65... Ra1 {[%clk 0:00:03.8]} 66. Rh5+ {[%clk 0:00:06.8]} 66... Ke4
{[%clk 0:00:04]} 67. Rh6 {[%clk 0:00:06]} 67... Kf3 {[%clk 0:00:03]} 68. Rxc6
{[%clk 0:00:05.8]} 68... dxc6 {[%clk 0:00:03.9]} 69. Kxc6 {[%clk 0:00:06.5]}
69... Ra2 {[%clk 0:00:03.3]} 70. Kb7 {[%clk 0:00:06.7]} 70... Rb2+ {[%clk
0:00:03.6]} 71. Bb6 {[%clk 0:00:07.4]} 71... Ra2 {[%clk 0:00:03]} 72. a8=Q
{[%clk 0:00:07.9]} 72... Rxa8 {[%clk 0:00:03.7]} 73. Kxa8 {[%clk 0:00:08.8]} 1-0

[Event "Early-Titled-Tuesday-Blitz-April-23-2024"]
[Site "Chess.com"]
[Date "2024.04.23"]
[Round "8"]
[White "azikom"]
[Black "AsselLesbekova"]
[Result "1-0"]
[WhiteElo "2697"]
[BlackElo "2441"]
[TimeControl "180+1"]
[EndTime "9:33:34 PDT"]
[Termination "azikom won by resignation"]

1. e4 {[%clk 0:03:00]} 1... e5 {[%clk 0:03:00.4]} 2. Nc3 {[%clk 0:03:00]} 2...
Nf6 {[%clk 0:03:00.7]} 3. Nf3 {[%clk 0:02:59.1]} 3... Nc6 {[%clk 0:03:00.3]} 4.
Bb5 {[%clk 0:02:59.5]} 4... Bb4 {[%clk 0:02:59.3]} 5. d3 {[%clk 0:02:57]} 5...
d6 {[%clk 0:02:53.3]} 6. O-O {[%clk 0:02:54.6]} 6... a6 {[%clk 0:02:48.5]} 7.
Bxc6+ {[%clk 0:02:53.3]} 7... bxc6 {[%clk 0:02:49.4]} 8. Ne2 {[%clk 0:02:53.9]}
8... h6 {[%clk 0:02:43.3]} 9. Ng3 {[%clk 0:02:53.6]} 9... O-O {[%clk 0:02:39.2]}
10. h3 {[%clk 0:02:52]} 10... Re8 {[%clk 0:02:36.1]} 11. b3 {[%clk 0:02:41.6]}
11... d5 {[%clk 0:02:32.7]} 12. Bb2 {[%clk 0:02:37]} 12... Bd6 {[%clk
0:02:26.7]} 13. Re1 {[%clk 0:02:35.3]} 13... d4 {[%clk 0:02:26.8]} 14. Nd2
{[%clk 0:02:33.4]} 14... c5 {[%clk 0:02:20.9]} 15. Nc4 {[%clk 0:02:29.9]} 15...
Be6 {[%clk 0:02:18.2]} 16. a4 {[%clk 0:02:28.6]} 16... Bxc4 {[%clk 0:02:11.1]}
17. dxc4 {[%clk 0:02:29.5]} 17... g6 {[%clk 0:02:10]} 18. Qd3 {[%clk 0:02:27.7]}
18... h5 {[%clk 0:01:59.7]} 19. Bc1 {[%clk 0:02:25.2]} 19... Bf8 {[%clk
0:01:58.4]} 20. Bg5 {[%clk 0:02:23.2]} 20... Qd6 {[%clk 0:01:54.3]} 21. Qf3
{[%clk 0:02:20.2]} 21... Nh7 {[%clk 0:01:51.5]} 22. Bd2 {[%clk 0:02:19.3]} 22...
Qf6 {[%clk 0:01:49.4]} 23. Qd3 {[%clk 0:02:10.9]} 23... Qd6 {[%clk 0:01:36.8]}
24. Rad1 {[%clk 0:02:09]} 24... Be7 {[%clk 0:01:36.8]} 25. Ne2 {[%clk
0:01:57.4]} 25... Bg5 {[%clk 0:01:34.2]} 26. Ba5 {[%clk 0:01:56.5]} 26... Kg7
{[%clk 0:01:30.7]} 27. Qg3 {[%clk 0:01:53.5]} 27... Qe7 {[%clk 0:01:20]} 28. Nc1
{[%clk 0:01:49.2]} 28... Bf4 {[%clk 0:01:08.1]} 29. Qf3 {[%clk 0:01:47.7]} 29...
Ng5 {[%clk 0:01:06.4]} 30. Qe2 {[%clk 0:01:48]} 30... Bxc1 {[%clk 0:01:04.4]}
31. Rxc1 {[%clk 0:01:47.3]} 31... Ne6 {[%clk 0:01:04.6]} 32. Qf3 {[%clk
0:01:43.8]} 32... Qf6 {[%clk 0:01:02.8]} 33. Qxf6+ {[%clk 0:01:34.9]} 33... Kxf6
{[%clk 0:01:03.7]} 34. h4 {[%clk 0:01:33.1]} 34... Ke7 {[%clk 0:01:00.9]} 35.
Rcd1 {[%clk 0:01:31.8]} 35... f6 {[%clk 0:00:56.8]} 36. Rd3 {[%clk 0:01:30.6]}
36... g5 {[%clk 0:00:54]} 37. hxg5 {[%clk 0:01:29.7]} 37... fxg5 {[%clk
0:00:54.9]} 38. Rf3 {[%clk 0:01:29.3]} 38... Rf8 {[%clk 0:00:53.2]} 39. Rf5
{[%clk 0:01:28.4]} 39... Kd6 {[%clk 0:00:48.9]} 40. Bd2 {[%clk 0:01:25.7]} 40...
Rxf5 {[%clk 0:00:44.1]} 41. exf5 {[%clk 0:01:25.4]} 41... Ng7 {[%clk 0:00:43]}
42. Bxg5 {[%clk 0:01:21.8]} 42... Nxf5 {[%clk 0:00:43.2]} 43. Re4 {[%clk
0:01:17.3]} 43... Rg8 {[%clk 0:00:39.6]} 44. f4 {[%clk 0:01:07.6]} 44... exf4
{[%clk 0:00:24.9]} 45. Bxf4+ {[%clk 0:01:08.5]} 45... Kd7 {[%clk 0:00:25.4]} 46.
Kf2 {[%clk 0:01:06.9]} 46... Nd6 {[%clk 0:00:21.7]} 47. Re5 {[%clk 0:00:59.8]}
47... Rf8 {[%clk 0:00:22]} 48. Kf3 {[%clk 0:00:58.6]} 48... Rf5 {[%clk
0:00:19.3]} 49. Rxf5 {[%clk 0:00:49.3]} 49... Nxf5 {[%clk 0:00:19.2]} 50. Ke4
{[%clk 0:00:48.5]} 50... Nh4 {[%clk 0:00:15.4]} 51. g3 {[%clk 0:00:42.8]} 51...
Ng2 {[%clk 0:00:16]} 52. Bd2 {[%clk 0:00:38.8]} 52... h4 {[%clk 0:00:15.4]} 53.
gxh4 {[%clk 0:00:35.3]} 53... Nxh4 {[%clk 0:00:16.3]} 54. Kd5 {[%clk 0:00:33.2]}
54... Nf3 {[%clk 0:00:12.3]} 55. Ba5 {[%clk 0:00:26.7]} 55... d3 {[%clk
0:00:08.2]} 56. cxd3 {[%clk 0:00:25.7]} 56... Nd4 {[%clk 0:00:07.2]} 57. b4
{[%clk 0:00:20.8]} 57... c6+ {[%clk 0:00:07.4]} 58. Kxc5 {[%clk 0:00:20.4]}
58... Nb3+ {[%clk 0:00:05]} 59. Kb6 {[%clk 0:00:19.8]} 59... Nc1 {[%clk
0:00:05.3]} 60. Kxa6 {[%clk 0:00:17.5]} 60... Nxd3 {[%clk 0:00:05.9]} 61. b5
{[%clk 0:00:15.5]} 61... c5 {[%clk 0:00:06.2]} 62. Bc3 {[%clk 0:00:13.4]} 62...
Nf2 {[%clk 0:00:04.4]} 63. a5 {[%clk 0:00:12]} 63... Ne4 {[%clk 0:00:05.1]} 64.
Bb2 {[%clk 0:00:11.2]} 64... Nd2 {[%clk 0:00:05.2]} 65. b6 {[%clk 0:00:10.8]}
65... Nxc4 {[%clk 0:00:05]} 66. b7 {[%clk 0:00:10.6]} 66... Kc7 {[%clk
0:00:02.8]} 67. Ka7 {[%clk 0:00:09.9]} 1-0

[Event "Early-Titled-Tuesday-Blitz-April-23-2024"]
[Site "Chess.com"]
[Date "2024.04.23"]
[Round "8"]
[White "Attacker88"]
[Black "ChainedDowntohell"]
[Result "0-1"]
[WhiteElo "2382"]
[BlackElo "2567"]
[TimeControl "180+1"]
[EndTime "9:33:35 PDT"]
[Termination "ChainedDowntohell won on time"]

1. e4 {[%clk 0:02:57.9]} 1... c5 {[%clk 0:02:59.6]} 2. Nf3 {[%clk 0:02:56.4]}
2... Nc6 {[%clk 0:02:59.2]} 3. d4 {[%clk 0:02:56.1]} 3... cxd4 {[%clk
0:02:58.6]} 4. Nxd4 {[%clk 0:02:55.5]} 4... e5 {[%clk 0:02:56.3]} 5. Nb5 {[%clk
0:02:55.2]} 5... d6 {[%clk 0:02:55.6]} 6. a4 {[%clk 0:02:54.9]} 6... Be6 {[%clk
0:02:53.3]} 7. N1c3 {[%clk 0:02:54.8]} 7... Be7 {[%clk 0:02:44.7]} 8. Nd5 {[%clk
0:02:47.3]} 8... h6 {[%clk 0:02:36.6]} 9. Nbc7+ {[%clk 0:02:40.9]} 9... Kf8
{[%clk 0:02:34.2]} 10. Nxa8 {[%clk 0:02:40.1]} 10... Qxa8 {[%clk 0:02:31.5]} 11.
Nxe7 {[%clk 0:02:33.6]} 11... Kxe7 {[%clk 0:02:32.4]} 12. Be3 {[%clk 0:02:33.5]}
12... Nf6 {[%clk 0:02:32]} 13. Bd3 {[%clk 0:02:32.2]} 13... Rc8 {[%clk
0:02:31.2]} 14. O-O {[%clk 0:02:32]} 14... Qb8 {[%clk 0:02:29]} 15. b3 {[%clk
0:02:26.3]} 15... Qc7 {[%clk 0:02:26.8]} 16. c4 {[%clk 0:02:21.1]} 16... Kf8
{[%clk 0:02:24.2]} 17. f3 {[%clk 0:02:19]} 17... Nd7 {[%clk 0:02:23.8]} 18. Qd2
{[%clk 0:02:10.8]} 18... Nc5 {[%clk 0:02:23.4]} 19. Bc2 {[%clk 0:02:08.4]} 19...
a5 {[%clk 0:02:21.1]} 20. Rad1 {[%clk 0:02:06.1]} 20... Ke7 {[%clk 0:02:20.1]}
21. Qc3 {[%clk 0:02:02.9]} 21... Bd7 {[%clk 0:02:14.6]} 22. f4 {[%clk
0:02:01.2]} 22... f6 {[%clk 0:02:14.6]} 23. Qe1 {[%clk 0:01:52.3]} 23... Ne6
{[%clk 0:02:12.8]} 24. Qg3 {[%clk 0:01:48.3]} 24... Rg8 {[%clk 0:02:01]} 25. Rd2
{[%clk 0:01:29.7]} 25... Ncd4 {[%clk 0:01:55.9]} 26. f5 {[%clk 0:01:20.3]} 26...
Nxc2 {[%clk 0:01:37.3]} 27. Rxc2 {[%clk 0:01:18]} 27... Nc5 {[%clk 0:01:32.9]}
28. Bxc5 {[%clk 0:01:11.7]} 28... Qxc5+ {[%clk 0:01:30.5]} 29. Qf2 {[%clk
0:01:11.8]} 29... Qb4 {[%clk 0:01:29.2]} 30. c5 {[%clk 0:01:02.7]} 30... dxc5
{[%clk 0:01:12.7]} 31. Qxc5+ {[%clk 0:01:01.9]} 31... Qxc5+ {[%clk 0:01:11]} 32.
Rxc5 {[%clk 0:01:02.8]} 32... Bc6 {[%clk 0:01:09.9]} 33. Re1 {[%clk 0:00:44.6]}
33... Ra8 {[%clk 0:01:03.2]} 34. Kf2 {[%clk 0:00:43.8]} 34... Ra6 {[%clk
0:01:02.6]} 35. Ke3 {[%clk 0:00:43]} 35... Rb6 {[%clk 0:01:02.5]} 36. Rc3 {[%clk
0:00:35.1]} 36... Rb4 {[%clk 0:01:01]} 37. Kf3 {[%clk 0:00:29.2]} 37... Rd4
{[%clk 0:01:00.9]} 38. Ree3 {[%clk 0:00:28.6]} 38... Ke8 {[%clk 0:00:52.3]} 39.
Rc4 {[%clk 0:00:27.7]} 39... Rd1 {[%clk 0:00:50.9]} 40. Rec3 {[%clk 0:00:24.4]}
40... Kd7 {[%clk 0:00:45.8]} 41. h4 {[%clk 0:00:21.8]} 41... h5 {[%clk 0:00:44]}
42. Re3 {[%clk 0:00:14.3]} 42... Rf1+ {[%clk 0:00:41]} 43. Kg3 {[%clk
0:00:12.8]} 43... Rf4 {[%clk 0:00:38.2]} 44. Kh3 {[%clk 0:00:11.6]} 44... Ke7
{[%clk 0:00:33.7]} 45. Rg3 {[%clk 0:00:08.6]} 45... Kf8 {[%clk 0:00:29.5]} 46.
Re3 {[%clk 0:00:06.6]} 46... Ke7 {[%clk 0:00:27.9]} 47. g3 {[%clk 0:00:06.7]}
47... Rf2 {[%clk 0:00:28]} 48. Rcc3 {[%clk 0:00:03.2]} 48... Rd2 {[%clk
0:00:25.1]} 49. Rc4 {[%clk 0:00:02.7]} 49... Kd6 {[%clk 0:00:23.6]} 50. g4
{[%clk 0:00:03.1]} 50... hxg4+ {[%clk 0:00:21]} 51. Kxg4 {[%clk 0:00:04]} 51...
Rd1 {[%clk 0:00:19.3]} 52. Rg3 {[%clk 0:00:03.5]} 52... Ke7 {[%clk 0:00:14.7]}
53. Kf3 {[%clk 0:00:03.7]} 53... Kf8 {[%clk 0:00:13.7]} 54. Rg4 {[%clk 0:00:04]}
54... Rd3+ {[%clk 0:00:11]} 55. Ke2 {[%clk 0:00:03.8]} 55... Rxb3 {[%clk
0:00:11.9]} 56. Rc1 {[%clk 0:00:03.4]} 56... Ra3 {[%clk 0:00:10.1]} 57. Rcg1
{[%clk 0:00:03.4]} 57... Rxa4 {[%clk 0:00:06]} 58. Rxg7 {[%clk 0:00:03.2]} 58...
Rxe4+ {[%clk 0:00:04.8]} 59. Kd3 {[%clk 0:00:02.4]} 59... Rxh4 {[%clk
0:00:04.3]} 60. Rg8+ {[%clk 0:00:01.9]} 60... Ke7 {[%clk 0:00:04.5]} 61. R1g7+
{[%clk 0:00:02.8]} 61... Kd6 {[%clk 0:00:05.1]} 62. Rd8+ {[%clk 0:00:03.3]}
62... Kc5 {[%clk 0:00:05.6]} 63. Rf7 {[%clk 0:00:03.7]} 63... Rh6 {[%clk
0:00:03.4]} 64. Rdf8 {[%clk 0:00:03]} 64... a4 {[%clk 0:00:03.3]} 65. Rxf6
{[%clk 0:00:03]} 65... Rh3+ {[%clk 0:00:03.8]} 66. Kc2 {[%clk 0:00:03]} 66...
Kc4 {[%clk 0:00:03]} 67. Ra8 {[%clk 0:00:02.5]} 67... a3 {[%clk 0:00:01.9]} 68.
Rd6 {[%clk 0:00:01.1]} 68... Rh2+ {[%clk 0:00:01.9]} 69. Rd2 {[%clk 0:00:01.3]}
69... Be4+ {[%clk 0:00:01.2]} 0-1